fUST/lending_fUST_20250930
["ID","MTS","AMOUNT","RATE_DAILY","PERIOD"]
[388498705,1759218641565,611.45027246,0.00019413,2]
[388499046,1759218645337,528.57,0.00019413,2]
[388499234,1759218647382,480.0,0.00019413,2]
[388499334,1759218648383,279.63,0.00019413,2]
[388499420,1759218653508,480.0,0.00019413,2]
[388499421,1759218660954,480.0,0.00019413,2]
[388499422,1759218662424,741.38,0.00019413,2]
[388499423,1759218668752,612.53165883,0.00019412,2]
[388499424,1759218674122,480.0,0.00019413,2]
[388499425,1759218675873,497.45,0.00019413,2]
[388499426,1759218688800,480.0,0.00019413,2]
[388499427,1759218691710,480.0,0.00019413,2]
[388499428,1759218692298,480.0,0.00019413,2]
[388499429,1759218698762,480.0,0.00019413,2]
[388499430,1759218703211,498.39806871,0.00019324,2]
[388499431,1759218703241,301.60193129,0.00019324,2]
[388499432,1759218703274,800.0,0.00019267,2]
[388499433,1759218703321,800.0,0.0001939,2]
[388499434,1759218706882,480.0,0.00019413,2]
[388499435,1759218708570,480.0,0.00019413,2]
[388499436,1759218712268,500.0,0.00019413,2]
[388499437,1759218712499,500.0,0.00019413,2]
[388499438,1759218712673,-567.38154673,0.00019476,2]
[388499439,1759218712708,-300.0,0.00019511,2]
[388499440,1759218712741,-480.0,0.00019511,2]
[388499441,1759218712775,-151.0,0.00019512,2]
[388499442,1759218712805,-198.82813676,0.00019512,2]
[388499443,1759218716915,480.0,0.00019413,2]
[388499444,1759218719408,480.0,0.00019413,2]
[388499445,1759218721233,480.0,0.00019413,2]
[388499446,1759218721935,480.0,0.00019413,2]
[388499447,1759218721977,480.0,0.00019413,2]
[388499448,1759218723282,300.0,0.00019511,2]
[388499449,1759218727063,480.0,0.00019413,2]
[388499450,1759218730106,968.32,0.00019413,2]
[388499451,1759218731899,480.0,0.00019413,2]
[388499452,1759218733689,480.0,0.00019413,2]
[388499453,1759218734017,480.0,0.00019413,2]
[388499454,1759218734375,1017.27063302,0.00019413,2]
[388499455,1759218734404,1871.90936698,0.00019413,2]
[388499456,1759218737210,2826.63,0.00019413,2]
[388499457,1759218738182,480.0,0.00019413,2]
[388499458,1759218742618,-306.19017451,0.00019314,2]
[388499476,1759218748369,-1857.47652198,0.00019314,2]
[388499477,1759218748431,-10000.01,0.00019314,2]
[388499478,1759218748452,-10000.01,0.00019314,2]
[388499479,1759218748556,-10000.01,0.00019314,2]
[388499480,1759218748727,-10000.01,0.00019314,2]
[388499481,1759218762261,306.15679401,0.00019081,2]
[388499482,1759218765244,-224.91639749,0.00019163,2]
[388499483,1759218766853,-7.70205578,0.00019163,2]
[388499484,1759218766889,-500.0,0.00019313,2]
[388499485,1759218766925,-500.0,0.00019313,2]
[388499486,1759218766962,-500.0,0.00019313,2]
[388499487,1759218767004,-498.84146779,0.00019313,2]
[388499488,1759218767042,-500.0,0.00019313,2]
[388499489,1759218767198,-4986.92295286,0.00019314,2]
[388499490,1759218767450,-10000.01,0.00019314,2]
[388499491,1759218772347,-10000.01,0.00019314,2]
[388499492,1759218772497,-10000.01,0.00019314,2]
[388499493,1759218772645,-10000.01,0.00019314,2]
[388499494,1759218785268,224.91639749,0.00019081,2]
[388499495,1759218792875,-667.69,0.00019304,3]
[388499496,1759218792908,-797.27,0.00019304,3]
[388499497,1759218792940,-2499.12190528,0.00019313,2]
[388499498,1759218792974,-300.0,0.00019313,2]
[388499499,1759218793129,-1471.84618944,0.00019314,2]
[388499500,1759218793167,-10000.01,0.00019314,2]
[388499501,1759218793213,-10000.01,0.00019314,2]
[388499502,1759218793317,-10000.01,0.00019314,2]
[388499503,1759218793360,275.74039749,0.00019081,2]
[388499504,1759218793575,-10000.01,0.00019314,2]
[388499505,1759218793709,-10000.01,0.00019314,2]
[388499506,1759218793755,1485.2934344,0.00018512,2]
[388499507,1759218808789,3477.17581293,0.00019081,2]
[388499508,1759218812881,-398.64,0.00019304,3]
[388499509,1759218812913,-199.32,0.00019304,3]
[388499510,1759218812945,-500.0,0.00019313,2]
[388499511,1759218812978,-500.0,0.00019313,2]
[388499512,1759218813010,-500.0,0.00019313,2]
[388499513,1759218813042,-500.0,0.00019313,2]
[388499514,1759218813077,-500.0,0.00019313,2]
[388499515,1759218813109,-500.0,0.00019313,2]
[388499516,1759218813145,-520.0,0.00019313,2]
[388499517,1759218813179,-500.0,0.00019313,2]
[388499518,1759218813213,-264.09,0.00019313,2]
[388499519,1759218813411,-235.91,0.00019313,2]
[388499520,1759218813445,-624.21025714,0.00019313,2]
[388499521,1759218813481,-500.0,0.00019313,2]
[388499522,1759218813516,-500.0,0.00019313,2]
[388499523,1759218816899,5000.0,0.00019314,2]
[388499524,1759218817767,597.96,0.00019304,3]
[388499525,1759218821653,500.0,0.00019313,2]
[388499526,1759218827029,-424.73732778,0.00019314,2]
[388499527,1759218829029,-183.255087,0.00019314,2]
[388499528,1759218829964,181.80948572,0.00019245,2]
[388499529,1759218829991,60.65079898,0.00019245,2]
[388499530,1759218831600,-224.97544208,0.00019314,2]
[388499531,1759218834521,5000.0,0.00019314,2]
[388499532,1759218835841,-703.7046768,0.00019314,2]
[388499533,1759218837572,-300.0,0.00019314,2]
[388499534,1759218839640,-200.0,0.00019314,2]
[388499535,1759218841881,-408.17148449,0.00019314,2]
[388499536,1759218842594,300.0,0.00019313,2]
[388499537,1759218844779,-254.2624915,0.00019314,2]
[388499538,1759218845415,300.0,0.000193,2]
[388499539,1759218846466,-280.69706122,0.00019314,2]
[388499540,1759218848998,-185.46340084,0.00019314,2]
[388499541,1759218851370,-163.83918621,0.00019314,2]
[388499542,1759218851742,538.28802393,0.00019313,2]
[388499543,1759218851877,3801.07117709,0.00019314,2]
[388499544,1759218851912,1198.92882291,0.00019314,2]
[388499545,1759218851956,500.0,0.00019313,2]
[388499546,1759218852004,500.0,0.00019313,2]
[388499547,1759218852050,620.0,0.00019313,2]
[388499548,1759218853228,-201.13366746,0.00019314,2]
[388499549,1759218856006,-155.35510159,0.00019314,2]
[388499550,1759218859557,-246.02726314,0.00019314,2]
[388499551,1759218861014,2051.41397404,0.00019314,2]
[388499552,1759218862343,500.0,0.00019313,2]
[388499553,1759218862632,201.76414772,0.00019313,2]
[388499554,1759218862667,500.0,0.00019313,2]
[388499555,1759218862724,500.0,0.00019313,2]
[388499556,1759218863592,-152.0,0.00019314,2]
[388499557,1759218866936,-206.62425766,0.00019314,2]
[388499558,1759218869980,-446.69168566,0.00019314,2]
[388499559,1759218871273,300.0,0.000193,2]
[388499560,1759218871920,-265.92257133,0.00019314,2]
[388499561,1759218872746,3127.90305533,0.00019314,2]
[388499562,1759218872774,1872.09694467,0.00019314,2]
[388499563,1759218874225,-592.92057606,0.00019314,2]
[388499564,1759218876057,-311.93504482,0.00019314,2]
[388499565,1759218878838,-204.76438321,0.00019314,2]
[388499566,1759218880178,500.0,0.00019313,2]
[388499567,1759218880245,500.0,0.00019313,2]
[388499568,1759218880466,500.0,0.00019313,2]
[388499569,1759218880533,500.0,0.00019313,2]
[388499570,1759218880575,500.0,0.00019313,2]
[388499571,1759218892466,500.0,0.00019313,2]
[388499572,1759218892503,500.0,0.00019313,2]
[388499573,1759218892548,500.0,0.00019313,2]
[388499574,1759218892587,500.0,0.00019313,2]
[388499575,1759218892624,500.0,0.00019313,2]
[388499576,1759218892659,500.0,0.00019313,2]
[388499577,1759218892700,500.0,0.00019313,2]
[388499578,1759218892738,500.0,0.00019313,2]
[388499579,1759218892774,500.0,0.00019313,2]
[388499580,1759218892810,500.0,0.00019313,2]
[388499581,1759218892851,500.0,0.00019313,2]
[388499582,1759218892887,127.91305533,0.00019313,2]
[388499583,1759218892914,522.08694467,0.00019313,2]
[388499584,1759218892954,154.65590776,0.00019313,2]
[388499585,1759218898052,300.0,0.000193,2]
[388499586,1759218898578,5000.0,0.00019314,2]
[388499587,1759218901543,300.0,0.00019313,2]
[388499588,1759218902203,300.0,0.00019313,2]
[388499589,1759218902383,300.0,0.00019313,2]
[388499590,1759218902690,300.0,0.00019313,2]
[388499591,1759218903190,1200.0,0.00019313,2]
[388499592,1759218904032,-5345.26180957,0.00019314,2]
[388499593,1759218925800,-10000.01,0.00019314,2]
[388499594,1759218925960,-10000.01,0.00019314,2]
[388499595,1759218926104,1623.26714757,0.00019314,2]
[388499596,1759218926139,3376.73285243,0.00019314,2]
[388499597,1759218937352,-5000.01,0.00019314,2]
[388499598,1759218937416,-10000.01,0.00019314,2]
[388499599,1759218947832,-10000.01,0.00019314,2]
[388499600,1759218947972,-10000.01,0.00019314,2]
[388499601,1759218948119,-10000.01,0.00019314,2]
[388499602,1759218948301,-10000.01,0.00019314,2]
[388499603,1759218948479,-10000.01,0.00019314,2]
[388499604,1759218951053,5000.0,0.00019081,2]
[388499605,1759218957847,-480.0,0.00019313,2]
[388499606,1759218957904,-9040.01,0.00019314,2]
[388499607,1759218957976,-10000.01,0.00019314,2]
[388499608,1759218958167,-10000.01,0.00019314,2]
[388499609,1759218958300,-10000.01,0.00019314,2]
[388499610,1759218968043,-184.2837217,0.00019218,2]
[388499611,1759218968084,-300.0,0.00019313,2]
[388499612,1759218968235,-9031.4425566,0.00019314,2]
[388499613,1759218968377,-10000.01,0.00019314,2]
[388499614,1759218968612,-10000.01,0.00019314,2]
[388499615,1759218968679,-10000.01,0.00019314,2]
[388499616,1759218968792,-10000.01,0.00019314,2]
[388499617,1759218968936,-10000.01,0.00019314,2]
[388499618,1759218976167,2635.30489592,0.00019081,2]
[388499619,1759219004885,-251.6611596,0.00019313,2]
[388499620,1759219004923,-500.0,0.00019313,2]
[388499621,1759219004964,-500.0,0.00019313,2]
[388499622,1759219005004,-500.0,0.00019313,2]
[388499623,1759219005041,-500.0,0.00019313,2]
[388499624,1759219005077,-480.0,0.00019313,2]
[388499625,1759219005114,-584.37,0.00019313,2]
[388499626,1759219005306,-3367.9476808,0.00019314,2]
[388499627,1759219011662,-480.0,0.00019313,2]
[388499628,1759219011727,-9040.01,0.00019314,2]
[388499629,1759219012080,-10000.01,0.00019314,2]
[388499630,1759219012344,-10000.01,0.00019314,2]
[388499631,1759219072918,-500.0,0.00019313,2]
[388499632,1759219072952,-500.0,0.00019313,2]
[388499633,1759219072989,-500.0,0.00019313,2]
[388499634,1759219073025,-567.89085284,0.00019313,2]
[388499635,1759219073059,-500.0,0.00019313,2]
[388499636,1759219073093,-302.70390043,0.00019313,2]
[388499637,1759219073132,-500.0,0.00019313,2]
[388499638,1759219073172,-500.0,0.00019313,2]
[388499639,1759219073211,-500.0,0.00019313,2]
[388499640,1759219073249,-300.02151669,0.00019313,2]
[388499641,1759219073288,-158.77746008,0.00019313,2]
[388499642,1759219073417,-341.22253992,0.00019313,2]
[388499643,1759219073453,-500.0,0.00019313,2]
[388499644,1759219073488,-500.0,0.00019313,2]
[388499645,1759219073526,-500.0,0.00019313,2]
[388499646,1759219073562,-500.0,0.00019313,2]
[388499647,1759219073602,-500.0,0.00019313,2]
[388499648,1759219073638,-500.0,0.00019313,2]
[388499649,1759219073678,-500.0,0.00019313,2]
[388499650,1759219073716,-500.0,0.00019313,2]
[388499651,1759219073756,-500.0,0.00019313,2]
[388499652,1759219073929,-500.0,0.00019313,2]
[388499653,1759219073968,-592.79859664,0.00019313,2]
[388499654,1759219074008,-500.0,0.00019313,2]
[388499655,1759219074048,-236.70307116,0.00019313,2]
[388499656,1759219074088,-500.0,0.00019313,2]
[388499657,1759219074129,-500.0,0.00019313,2]
[388499658,1759219074174,-500.0,0.00019313,2]
[388499659,1759219074215,-500.0,0.00019313,2]
[388499660,1759219074255,-500.0,0.00019313,2]
[388499661,1759219074296,-500.0,0.00019313,2]
[388499662,1759219074423,-500.0,0.00019313,2]
[388499663,1759219074463,-500.0,0.00019313,2]
[388499664,1759219074503,-500.0,0.00019313,2]
[388499665,1759219074541,-500.0,0.00019313,2]
[388499666,1759219074578,-500.0,0.00019313,2]
[388499667,1759219074617,-500.0,0.00019313,2]
[388499668,1759219074657,-500.0,0.00019313,2]
[388499669,1759219074692,-500.0,0.00019313,2]
[388499670,1759219074727,-500.0,0.00019313,2]
[388499671,1759219074761,-500.0,0.00019313,2]
[388499672,1759219074893,-489.66301928,0.00019313,2]
[388499673,1759219074926,-500.0,0.00019313,2]
[388499674,1759219074959,-378.19412772,0.00019313,2]
[388499675,1759219074991,-500.0,0.00019313,2]
[388499676,1759219075024,-500.0,0.00019313,2]
[388499677,1759219075058,-202.26753439,0.00019313,2]
[388499678,1759219075095,-500.0,0.00019313,2]
[388499679,1759219075133,-500.0,0.00019313,2]
[388499680,1759219075175,-500.0,0.00019313,2]
[388499681,1759219075216,-500.0,0.00019313,2]
[388499682,1759219075257,-359.76063722,0.00019313,2]
[388499683,1759219075408,-140.23936278,0.00019313,2]
[388499684,1759219075447,-500.0,0.00019313,2]
[388499685,1759219075485,-500.0,0.00019313,2]
[388499686,1759219075521,-500.0,0.00019313,2]
[388499687,1759219075558,-500.0,0.00019313,2]
[388499688,1759219075595,-500.0,0.00019313,2]
[388499689,1759219075636,-500.0,0.00019313,2]
[388499690,1759219075811,-500.0,0.00019313,2]
[388499691,1759219075851,-500.0,0.00019313,2]
[388499692,1759219075889,-500.0,0.00019313,2]
[388499693,1759219075927,-219.53127444,0.00019313,2]
[388499694,1759219077152,-280.46872556,0.00019313,2]
[388499695,1759219077162,-150.38046798,0.00019313,2]
[388499696,1759219077183,-349.61953202,0.00019313,2]
[388499697,1759219077192,-150.38046798,0.00019313,2]
[388499698,1759219077212,-349.61953202,0.00019313,2]
[388499699,1759219077222,-150.38046798,0.00019313,2]
[388499700,1759219077274,252.6504076,0.00018391,2]
[388499701,1759219083171,-300.0,0.00019312,2]
[388499702,1759219083212,-500.0,0.00019313,2]
[388499703,1759219083254,-349.61953202,0.00019313,2]
[388499704,1759219083291,-500.0,0.00019313,2]
[388499705,1759219083328,-407.64436673,0.00019313,2]
[388499706,1759219083367,-500.0,0.00019313,2]
[388499707,1759219083405,-500.0,0.00019313,2]
[388499708,1759219083442,-500.0,0.00019313,2]
[388499709,1759219083479,-500.0,0.00019313,2]
[388499710,1759219083514,-500.0,0.00019313,2]
[388499711,1759219083553,-401.68921187,0.00019313,2]
[388499712,1759219083732,-82.10377876,0.00019313,2]
[388499713,1759219083770,-195.27476455,0.00019313,2]
[388499714,1759219083808,-500.0,0.00019313,2]
[388499715,1759219083846,-500.0,0.00019313,2]
[388499716,1759219083883,-562.06038683,0.00019313,2]
[388499717,1759219083920,-500.0,0.00019313,2]
[388499718,1759219083957,-500.0,0.00019313,2]
[388499719,1759219083995,-500.0,0.00019313,2]
[388499720,1759219084034,-500.0,0.00019313,2]
[388499721,1759219084069,-323.69173578,0.00019313,2]
[388499722,1759219084107,-500.0,0.00019313,2]
[388499723,1759219084146,-305.42336733,0.00019313,2]
[388499724,1759219084423,-62.9019335,0.00019313,2]
[388499725,1759219084461,-480.0,0.00019313,2]
[388499726,1759219084498,-480.0,0.00019313,2]
[388499727,1759219084536,-480.0,0.00019313,2]
[388499728,1759219084574,-480.0,0.00019313,2]
[388499729,1759219084616,-1159.0,0.00019313,2]
[388499730,1759219084653,-480.0,0.00019313,2]
[388499731,1759219084688,-480.0,0.00019313,2]
[388499732,1759219084724,-480.0,0.00019313,2]
[388499733,1759219084762,-356.206133,0.00019313,2]
[388499734,1759219084844,-123.793867,0.00019313,2]
[388499735,1759219084881,-480.0,0.00019313,2]
[388499736,1759219084922,-4352.33086061,0.00019314,2]
[388499737,1759219085069,-87.76054478,0.00019314,2]
[388499738,1759219085105,-372.36963946,0.000194,2]
[388499739,1759219085141,-254.265959,0.00019412,2]
[388499740,1759219085182,-500.0,0.00019412,2]
[388499741,1759219085217,-222.56263064,0.00019412,2]
[388499742,1759219085257,-500.0,0.00019412,2]
[388499743,1759219085295,-500.0,0.00019412,2]
[388499744,1759219085332,-500.0,0.00019412,2]
[388499745,1759219085372,-535.67459941,0.00019412,2]
[388499746,1759219085411,-500.0,0.00019412,2]
[388499747,1759219085447,-177.98617129,0.00019412,2]
[388499748,1759219086670,-230.05806758,0.00019413,2]
[388499749,1759219086694,-177.98617129,0.00019413,2]
[388499750,1759219086720,-1698.77091084,0.00019413,2]
[388499751,1759219086755,-10000.01,0.00019413,2]
[388499752,1759219100756,410.486327,0.00019081,2]
[388499753,1759219133848,-2645.32100668,0.00019213,2]
[388499754,1759219133899,-4709.36798664,0.00019214,2]
[388499755,1759219133990,-10000.01,0.00019214,2]
[388499756,1759219134135,-10000.01,0.00019214,2]
[388499757,1759219134280,-10000.01,0.00019214,2]
[388499758,1759219134457,-10000.01,0.00019214,2]
[388499759,1759219134615,-10000.01,0.00019214,2]
[388499760,1759219152933,-500.0,0.00019213,2]
[388499761,1759219152967,-500.0,0.00019213,2]
[388499762,1759219153002,-614.4422802,0.00019213,2]
[388499763,1759219153036,-500.0,0.00019213,2]
[388499764,1759219153069,-500.0,0.00019213,2]
[388499765,1759219153102,-500.0,0.00019213,2]
[388499766,1759219153135,-500.0,0.00019213,2]
[388499767,1759219153174,-500.0,0.00019213,2]
[388499768,1759219153209,-500.0,0.00019213,2]
[388499769,1759219153244,-271.1254396,0.00019213,2]
[388499770,1759219153378,-228.8745604,0.00019213,2]
[388499771,1759219153411,-500.0,0.00019213,2]
[388499772,1759219153443,-369.12765526,0.00019213,2]
[388499773,1759219153475,-500.0,0.00019213,2]
[388499774,1759219153511,-500.0,0.00019213,2]
[388499775,1759219153543,-477.45666116,0.00019213,2]
[388499776,1759219153577,-500.0,0.00019213,2]
[388499777,1759219153613,-500.0,0.00019213,2]
[388499778,1759219153646,-500.0,0.00019213,2]
[388499779,1759219153680,-500.0,0.00019213,2]
[388499780,1759219153717,-380.18546239,0.00019213,2]
[388499781,1759219153977,-446.21066839,0.00019213,2]
[388499782,1759219154011,-650.90695129,0.00019213,2]
[388499783,1759219154047,-300.0,0.00019213,2]
[388499784,1759219154784,-40.13922082,0.00019214,2]
[388499785,1759219154822,-300.0,0.00019214,2]
[388499786,1759219154854,-7205.77476064,0.00019214,2]
[388499787,1759219154959,-10000.01,0.00019214,2]
[388499788,1759219173820,-160.54493585,0.00019214,2]
[388499789,1759219174409,500.0,0.00019213,2]
[388499790,1759219174442,500.0,0.00019213,2]
[388499791,1759219174475,500.0,0.00019213,2]
[388499792,1759219174509,500.0,0.00019213,2]
[388499793,1759219174543,500.0,0.00019213,2]
[388499794,1759219174578,380.18546239,0.00019213,2]
[388499795,1759219176530,-243.4095924,0.00019214,2]
[388499796,1759219192855,654.94297066,0.00019214,2]
[388499797,1759219196802,483.16,0.00019204,3]
[388499798,1759219201438,300.0,0.00019213,2]
[388499799,1759219202264,300.0,0.00019213,2]
[388499800,1759219202312,300.0,0.00019213,2]
[388499801,1759219202410,300.0,0.00019213,2]
[388499802,1759219205852,1200.0,0.00019213,2]
[388499803,1759219207518,500.0,0.00019213,2]
[388499804,1759219207550,173.4821229,0.00019213,2]
[388499805,1759219207588,331.4105788,0.00019213,2]
[388499806,1759219207620,1002.41,0.00019204,3]
[388499807,1759219207654,364.45609909,0.00019213,2]
[388499808,1759219207688,500.0,0.00019213,2]
[388499809,1759219207748,500.0,0.00019213,2]
[388499810,1759219207784,500.0,0.00019213,2]
[388499811,1759219207831,442.22838167,0.00019213,2]
[388499812,1759219207872,500.0,0.00019213,2]
[388499813,1759219207918,500.0,0.00019213,2]
[388499814,1759219207969,500.0,0.00019213,2]
[388499815,1759219208878,500.0,0.00019213,2]
[388499816,1759219209006,500.0,0.00019213,2]
[388499817,1759219209582,500.0,0.00019213,2]
[388499818,1759219211612,242.60747754,0.00019214,2]
[388499819,1759219215065,500.0,0.00019213,2]
[388499820,1759219215468,500.0,0.00019213,2]
[388499821,1759219216161,243.4095924,0.00019114,2]
[388499822,1759219216311,569.76333411,0.00019213,2]
[388499823,1759219218100,501.21,0.00019204,3]
[388499824,1759219219041,129.03241349,0.00019213,2]
[388499825,1759219219071,240.26666826,0.00019213,2]
[388499826,1759219219105,428.61729952,0.00019213,2]
[388499827,1759219224613,500.0,0.00019213,2]
[388499828,1759219228775,501.21,0.00019204,3]
[388499829,1759219229082,500.0,0.00019213,2]
[388499830,1759219229153,500.0,0.00019213,2]
[388499831,1759219229200,500.0,0.00019213,2]
[388499832,1759219229238,500.0,0.00019213,2]
[388499833,1759219229278,551.90756526,0.00019213,2]
[388499834,1759219229325,500.0,0.00019213,2]
[388499835,1759219229368,500.0,0.00019213,2]
[388499836,1759219230722,500.0,0.00019213,2]
[388499837,1759219234549,540.88,0.00019213,2]
[388499838,1759219234702,460.0,0.00019213,2]
[388499839,1759219236471,165.250848,0.00018411,2]
[388499840,1759219239532,2115.94,0.00019204,3]
[388499841,1759219241847,184.39571548,0.00019213,2]
[388499842,1759219245202,480.0,0.00019213,2]
[388499843,1759219250185,1225.04,0.00019204,3]
[388499844,1759219255519,276.91367801,0.00019213,2]
[388499845,1759219259178,615.7,0.00019213,2]
[388499846,1759219259212,500.0,0.00019213,2]
[388499847,1759219260928,612.52,0.00019204,3]
[388499848,1759219262665,300.0,0.00019213,2]
[388499849,1759219264110,541.06806257,0.00019213,2]
[388499850,1759219266083,500.0,0.00019213,2]
[388499851,1759219268210,302.42545213,0.00019117,2]
[388499852,1759219269124,533.00145425,0.00019213,2]
[388499853,1759219269290,146.87478956,0.00019213,2]
[388499854,1759219269321,353.12521044,0.00019213,2]
[388499855,1759219270579,500.0,0.00019213,2]
[388499856,1759219271607,306.26,0.00019204,3]
[388499857,1759219274326,500.0,0.00019213,2]
[388499858,1759219282138,153.13,0.00019204,3]
[388499859,1759219283186,500.0,0.00019213,2]
[388499860,1759219284047,480.0,0.00019213,2]
[388499861,1759219288353,480.0,0.00019213,2]
[388499862,1759219289326,480.0,0.00019213,2]
[388499863,1759219289864,500.0,0.00019213,2]
[388499864,1759219292933,459.4,0.00019204,3]
[388499865,1759219294760,170.6148935,0.00019213,2]
[388499866,1759219296163,500.0,0.00019213,2]
[388499867,1759219297149,480.0,0.00019213,2]
[388499868,1759219302945,500.0,0.00019213,2]
[388499869,1759219303184,483.34468348,0.00019213,2]
[388499870,1759219304620,500.0,0.00019213,2]
[388499871,1759219309497,500.0,0.00019213,2]
[388499872,1759219309860,480.0,0.00019213,2]
[388499873,1759219311980,480.0,0.00019213,2]
[388499874,1759219313498,480.0,0.00019213,2]
[388499875,1759219314413,500.0,0.00019213,2]
[388499876,1759219315402,214.13521258,0.00019213,2]
[388499877,1759219315429,631.38478742,0.00019213,2]
[388499878,1759219322624,300.0,0.00019213,2]
[388499879,1759219322825,500.0,0.00019213,2]
[388499880,1759219323943,201.9978977,0.00018411,2]
[388499881,1759219331425,480.0,0.00019213,2]
[388499882,1759219355951,1200.0,0.00019213,2]
[388499883,1759219383099,300.0,0.00019213,2]
[388499884,1759219387047,500.0,0.00019213,2]
[388499885,1759219387102,514.89713035,0.00019213,2]
[388499886,1759219389744,387.35619327,0.00019213,2]
[388499887,1759219397744,480.0,0.00019213,2]
[388499888,1759219406216,500.0,0.00019213,2]
[388499889,1759219424873,480.0,0.00019213,2]
[388499890,1759219426468,500.0,0.00019213,2]
[388499891,1759219428622,482.02028603,0.00019213,2]
[388499892,1759219432364,480.0,0.00019213,2]
[388499893,1759219434748,7557.98971397,0.00018411,2]
[388499894,1759219434775,9746.78902383,0.00018411,2]
[388499895,1759219442505,253.22097617,0.00019213,2]
[388499896,1759219442543,46.77902383,0.00019213,2]
[388499897,1759219445038,480.0,0.00019213,2]
[388499898,1759219447778,500.0,0.00019213,2]
[388499899,1759219457420,500.0,0.00019213,2]
[388499900,1759219458693,500.0,0.00019213,2]
[388499901,1759219459142,2116.25680532,0.00019213,2]
[388499902,1759219460808,480.0,0.00019213,2]
[388499903,1759219475748,234.62,0.00019213,2]
[388499904,1759219486116,154.0,7.9e-07,2]
[388499906,1759219487474,154.0,7.9e-07,2]
[388499907,1759219494606,518.29096213,0.00019213,2]
[388499908,1759219502385,300.0,0.00019213,2]
[388499909,1759219502870,300.0,0.00019213,2]
[388499910,1759219502904,253.0,0.00019213,2]
[388499911,1759219503853,500.0,0.00019213,2]
[388499912,1759219505693,1200.0,0.00019213,2]
[388499913,1759219506528,1026.03,0.00019213,2]
[388499914,1759219509799,590.04,0.00019213,2]
[388499915,1759219511548,500.0,0.00019213,2]
[388499916,1759219526873,460.0,0.00019213,2]
[388499917,1759219528585,213.77223255,0.00019213,2]
[388499918,1759219528613,266.22776745,0.00019213,2]
[388499919,1759219532437,500.0,0.00019213,2]
[388499920,1759219539251,500.0,0.00019213,2]
[388499921,1759219542255,480.0,0.00019213,2]
[388499922,1759219548338,647.1,0.00019213,2]
[388499923,1759219548396,290.57,0.00019213,2]
[388499924,1759219550640,500.0,0.00019213,2]
[388499925,1759219555074,276.3394246,0.00018411,2]
[388499926,1759219562038,510.68,0.00019213,2]
[388499927,1759219563019,300.0,0.00019213,2]
[388499928,1759219563194,500.0,0.00019213,2]
[388499929,1759219564614,500.0,0.00019213,2]
[388499930,1759219566508,520.87211863,0.00019213,2]
[388499931,1759219567793,500.0,0.00019213,2]
[388499932,1759219598454,500.0,0.00019213,2]
[388499933,1759219601637,3115.13,0.00019213,2]